{"text_format":"1","workbook":"xlsx","n_sheets":1,"sheets":["Calculatreur de prêt"],"not_rendered":{"charts":0,"images":0,"macros":0,"external_links":0,"defined_names":10,"comments":0,"pivot_tables":0},"unopened":[],"bounds":{"document_bytes":16777216,"sheet_cells":100000,"rows_first":2000,"rows_last":500,"rows_between":2000,"halvings":0,"cell_chars":16384,"cell_head_chars":4096},"cells_cut":0,"cells_raw":0,"read":"whole","date_system":"1900"}

{"sheet":"Calculatreur de prêt","index":0,"n_rows":22,"n_cols":13,"rows_kept":22,"cut":false,"hidden":false,"merged":[[10,6,10,8],[10,2,10,5],[18,2,18,12],[10,9,10,12],[2,1,2,3],[1,6,2,8],[1,11,2,12],[1,1,1,3],[6,5,6,6],[7,5,7,6]]}
[]
[null,"CALCULATEUR DE ",null,null,null,null,50000,null,null,null,null,"2011-05-10"]
[null,"PRÊT ÉTUDIANT "]
[]
[null," Il est suggéré que le remboursement mensuel total de votre prêt étudiant ne dépasse pas 8 % de votre salaire annuel la première année."]
[]
[null,null,"Votre paiement mensuel actuel combiné est :",null,null,{"$f":"CollegeLoans[[#Totals],[Paiement mensuel actuel]]","v":328.58590726058833},null,null,"Votre paiement mensuel planifié combiné est :",null,null,null,{"$f":"CollegeLoans[[#Totals],[Paiement planifié]]","v":328.58590726058833}]
[null,null,"Pourcentage du revenu mensuel :",null,null,{"$f":"CollegeLoans[[#Totals],[Paiement mensuel actuel]]/EstimatedMonthlySalary","v":7.8860617742541189E-2},null,null,"  Pourcentage du revenu mensuel :",null,null,null,{"$f":"CollegeLoans[[#Totals],[Paiement planifié]]/EstimatedMonthlySalary","v":7.8860617742541189E-2}]
[]
[]
[null,null,"INFORMATIONS GÉNÉRALES SUR LE PRÊT",null,null,null,"DONNÉES DE REMBOURSEMENT DU PRÊT",null,null,"INFORMATIONS SUR LE PAIEMENT"]
[null,null,"N° du prêt","Prêteur","Montant \ndu prêt","Taux d’intérêt annuel","Date de début","Durée (années)","Date de fin","Paiement mensuel actuel","Montant total\nde l’intérêt","Paiement planifié","Paiement annuel"]
[null,null,"10998M88","Prêteur 1",10000,0.05,"2011-04-01",10,{"$f":"IF(AND(CollegeLoans[[#This Row],[Date de début]]>0,CollegeLoans[[#This Row],[Durée (années)]]>0),EDATE(CollegeLoans[[#This Row],[Date de début]],CollegeLoans[[#This Row],[Durée (années)]]*12),\"\")","v":"2021-04-01"},{"$f":"IF(AND(LoanStartLToday,COUNT(CollegeLoans[[#This Row],[Montant \ndu prêt]]:CollegeLoans[[#This Row],[Durée (années)]])=4,CollegeLoans[[#This Row],[Date de début]]<TODAY()),PMT(CollegeLoans[[#This Row],[Taux d’intérêt annuel]]/12,CollegeLoans[[#This Row],[Durée (années)]]*12,-CollegeLoans[[#This Row],[Montant \ndu prêt]],0,0),\"\")","v":106.06551523907524},{"$f":"IFERROR((CollegeLoans[[#This Row],[Paiement planifié]]*(CollegeLoans[[#This Row],[Durée (années)]]*12))-CollegeLoans[[#This Row],[Montant \ndu prêt]],\"\")","v":2727.8618286890287},{"$f":"IF(COUNTA(CollegeLoans[[#This Row],[Montant \ndu prêt]:[Durée (années)]])<>4,\"\",PMT(CollegeLoans[[#This Row],[Taux d’intérêt annuel]]/12,CollegeLoans[[#This Row],[Durée (années)]]*12,-CollegeLoans[[#This Row],[Montant \ndu prêt]],0,0))","v":106.06551523907524},{"$f":"IFERROR(CollegeLoans[[#This Row],[Paiement planifié]]*12,\"\")","v":1272.7861828689029}]
[null,null,"20987N87","Prêteur 2",8000,0.05,"2011-05-01",10,{"$f":"IF(AND(CollegeLoans[[#This Row],[Date de début]]>0,CollegeLoans[[#This Row],[Durée (années)]]>0),EDATE(CollegeLoans[[#This Row],[Date de début]],CollegeLoans[[#This Row],[Durée (années)]]*12),\"\")","v":"2021-05-01"},{"$f":"IF(AND(LoanStartLToday,COUNT(CollegeLoans[[#This Row],[Montant \ndu prêt]]:CollegeLoans[[#This Row],[Durée (années)]])=4,CollegeLoans[[#This Row],[Date de début]]<TODAY()),PMT(CollegeLoans[[#This Row],[Taux d’intérêt annuel]]/12,CollegeLoans[[#This Row],[Durée (années)]]*12,-CollegeLoans[[#This Row],[Montant \ndu prêt]],0,0),\"\")","v":84.852412191260186},{"$f":"IFERROR((CollegeLoans[[#This Row],[Paiement planifié]]*(CollegeLoans[[#This Row],[Durée (années)]]*12))-CollegeLoans[[#This Row],[Montant \ndu prêt]],\"\")","v":2182.289462951223},{"$f":"IF(COUNTA(CollegeLoans[[#This Row],[Montant \ndu prêt]:[Durée (années)]])<>4,\"\",PMT(CollegeLoans[[#This Row],[Taux d’intérêt annuel]]/12,CollegeLoans[[#This Row],[Durée (années)]]*12,-CollegeLoans[[#This Row],[Montant \ndu prêt]],0,0))","v":84.852412191260186},{"$f":"IFERROR(CollegeLoans[[#This Row],[Paiement planifié]]*12,\"\")","v":1018.2289462951222}]
[null,null,"36785LM","Prêteur 3",6000,4.4999999999999998E-2,"2012-03-01",10,{"$f":"IF(AND(CollegeLoans[[#This Row],[Date de début]]>0,CollegeLoans[[#This Row],[Durée (années)]]>0),EDATE(CollegeLoans[[#This Row],[Date de début]],CollegeLoans[[#This Row],[Durée (années)]]*12),\"\")","v":"2022-03-01"},{"$f":"IF(AND(LoanStartLToday,COUNT(CollegeLoans[[#This Row],[Montant \ndu prêt]]:CollegeLoans[[#This Row],[Durée (années)]])=4,CollegeLoans[[#This Row],[Date de début]]<TODAY()),PMT(CollegeLoans[[#This Row],[Taux d’intérêt annuel]]/12,CollegeLoans[[#This Row],[Durée (années)]]*12,-CollegeLoans[[#This Row],[Montant \ndu prêt]],0,0),\"\")","v":62.183045254209183},{"$f":"IFERROR((CollegeLoans[[#This Row],[Paiement planifié]]*(CollegeLoans[[#This Row],[Durée (années)]]*12))-CollegeLoans[[#This Row],[Montant \ndu prêt]],\"\")","v":1461.9654305051017},{"$f":"IF(COUNTA(CollegeLoans[[#This Row],[Montant \ndu prêt]:[Durée (années)]])<>4,\"\",PMT(CollegeLoans[[#This Row],[Taux d’intérêt annuel]]/12,CollegeLoans[[#This Row],[Durée (années)]]*12,-CollegeLoans[[#This Row],[Montant \ndu prêt]],0,0))","v":62.183045254209183},{"$f":"IFERROR(CollegeLoans[[#This Row],[Paiement planifié]]*12,\"\")","v":746.19654305051017}]
[null,null,"765R43","Prêteur 4",4000,0.05,"2012-05-01",5,{"$f":"IF(AND(CollegeLoans[[#This Row],[Date de début]]>0,CollegeLoans[[#This Row],[Durée (années)]]>0),EDATE(CollegeLoans[[#This Row],[Date de début]],CollegeLoans[[#This Row],[Durée (années)]]*12),\"\")","v":"2017-05-01"},{"$f":"IF(AND(LoanStartLToday,COUNT(CollegeLoans[[#This Row],[Montant \ndu prêt]]:CollegeLoans[[#This Row],[Durée (années)]])=4,CollegeLoans[[#This Row],[Date de début]]<TODAY()),PMT(CollegeLoans[[#This Row],[Taux d’intérêt annuel]]/12,CollegeLoans[[#This Row],[Durée (années)]]*12,-CollegeLoans[[#This Row],[Montant \ndu prêt]],0,0),\"\")","v":75.484934576043742},{"$f":"IFERROR((CollegeLoans[[#This Row],[Paiement planifié]]*(CollegeLoans[[#This Row],[Durée (années)]]*12))-CollegeLoans[[#This Row],[Montant \ndu prêt]],\"\")","v":529.09607456262438},{"$f":"IF(COUNTA(CollegeLoans[[#This Row],[Montant \ndu prêt]:[Durée (années)]])<>4,\"\",PMT(CollegeLoans[[#This Row],[Taux d’intérêt annuel]]/12,CollegeLoans[[#This Row],[Durée (années)]]*12,-CollegeLoans[[#This Row],[Montant \ndu prêt]],0,0))","v":75.484934576043742},{"$f":"IFERROR(CollegeLoans[[#This Row],[Paiement planifié]]*12,\"\")","v":905.8192149125249}]
[null,null,"Totaux",null,{"$f":"SUBTOTAL(109,CollegeLoans[Montant \ndu prêt])","v":28000},null,null,null,null,{"$f":"SUBTOTAL(109,CollegeLoans[Paiement mensuel actuel])","v":328.58590726058833},{"$f":"SUBTOTAL(109,CollegeLoans[Montant total\nde l’intérêt])","v":6901.2127967079778},{"$f":"SUBTOTAL(109,CollegeLoans[Paiement planifié])","v":328.58590726058833},{"$f":"SUBTOTAL(109,CollegeLoans[Paiement annuel])","v":3943.0308871270599}]
[null,null,"Moyennes",null,{"$f":"AVERAGE(CollegeLoans[Montant \ndu prêt])","v":7000},{"$f":"AVERAGE(CollegeLoans[Taux d’intérêt annuel])","v":4.8750000000000002E-2},null,null,null,null,{"$f":"AVERAGE(CollegeLoans[Montant total\nde l’intérêt])","v":1725.3031991769944},null,{"$f":"AVERAGE(CollegeLoans[Paiement annuel])","v":985.75772178176499}]
[]
[null,null,null,null,null,null,null,null,null,null,"Remboursement du prêt consolidé total :",null,{"$f":"CollegeLoans[[#Totals],[Montant \ndu prêt]]+CollegeLoans[[#Totals],[Montant total\nde l’intérêt]]","v":34901.21279670798}]
[]
[null,null,null,null,null,null,null,null,null,null,"Revenu mensuel prévu à la fin des études :",null,{"$f":"(EstimatedAnnualSalary/12)","v":4166.666666666667}]